Cogmind - Beta 13 @@@ ROGUE MODE // 2024.05.28 @ 22:03:15 Player: Some Pennies Result: Destroyed by Y-45 Defender with Heavy Assault Rifle Performance ------------- Evolutions (0) 0 Regions Visited (2) 400 Robots Destroyed (18) 90 Value Destroyed (253) 253 Prototype IDs (0) 0 Alien Tech Used (0) 0 Bonus (0) 0 TOTAL SCORE: 743 Bonus ------- None Cogmind --------- Core Integrity 0/250 Matter 280/300 Energy 97/100 System Corruption 0% Temperature Cool (6) Movement Flying (37) Location -10/Mines Parts ------- > --- POWER (1) -------- (None) > --- PROPULSION (2) --- Flight Unit Flight Unit > --- UTILITY (2) ------ Small Storage Unit Hacking Suite > --- WEAPON (2) ------- Light Assault Rifle Light Assault Rifle > --- INVENTORY (8) ---- Light Ion Engine Flight Unit Flight Unit Light Armor Plating Light Assault Rifle Grenade Launcher Datajack Mining Laser Peak State ------------ > --- POWER ------------ Light Ion Engine > --- PROPULSION ------- Flight Unit Flight Unit > --- UTILITY ---------- Small Storage Unit Seismic Detector > --- WEAPON ----------- Light Assault Rifle Light Assault Rifle > --- INVENTORY -------- Light Armor Plating Hacking Suite Light Assault Rifle Light Assault Rifle Light Assault Rifle Light Assault Rifle Grenade Launcher Mining Laser [Rating: 8] Favorites ----------- Power Light Ion Engine Engine Light Ion Engine Propulsion Flight Unit Flight Unit Flight Unit Utility Small Storage Unit Device Seismic Detector Storage Small Storage Unit Hackware Hacking Suite Protection Light Armor Plating Weapon Light Assault Rifle Ballistic Gun Light Assault Rifle Special Weapon Mining Laser Build | -11 -10 -10 ------- Run | Yrd Mat Min Slots Evolved . | . . . Power . | . . . Propulsion . | . . . Utility . | . . . Weapon . | . . . Parts Attached 26 | 4 9 13 Power 1 | . 1 . Engine 1 | . 1 . Core . | . . . Reactor . | . . . Propulsion 7 | . 2 5 Treads . | . . . Leg . | . . . Wheel . | . . . Hover . | . . . Flight 7 | . 2 5 Utility 5 | 2 1 2 Device 2 | 2 . . Storage 1 | . 1 . Processor . | . . . Hackware 1 | . . 1 Protection 1 | . . 1 Artifact . | . . . Weapon 13 | 2 5 6 Energy Gun . | . . . Energy Cannon . | . . . Ballistic Gun 11 | 2 3 6 Ballistic Cannon . | . . . Launcher . | . . . Special Weapon 2 | . 2 . Impact Weapon . | . . . Slashing Weapon . | . . . Piercing Weapon . | . . . Special Melee Weapon . | . . . Unidentified Prototypes . | . . . Parts Lost 4 | . . 4 Power . | . . . Propulsion 2 | . . 2 Utility 1 | . . 1 Weapon 1 | . . 1 Highest Loss Streak 4 | . . 4 To Critical Strikes . | . . . Average Slot Usage (%) 73 | . 69 78 Flight 17 | . 12 24 Device 9 | . 14 4 Storage 13 | . 13 14 Hackware 2 | . . 6 Ballistic Gun 27 | . 26 28 Naked Turns . | . . . Heaviest Build 11 | 3 11 8 Greatest Support 8 | 3 8 8 Greatest Overweight (x) 2 | . 2 2 Average Overweight (x) . | . . . Largest Inventory Capacity 8 | 5 8 8 Average Capacity 7 | 5 7 8 Most Carried 8 | 5 8 8 Average Carried 7 | 2 7 7 Final Capacity 8 | 5 8 8 Final Carried 8 | 5 8 8 Class Distribution -------------------- 76% | Mutant 23% | Scavenger-Mutant Dominant Class ---------------- Mutant | -10/Materials Scavenger-Mutant | -10/Mines Resources | -11 -10 -10 ----------- Run | Yrd Mat Min Matter Collected 526 | 268 53 205 Remotely . | . . . Salvage Created 410 | 137 81 192 Parts 39 | 9 7 23 Haulers Intercepted . | . . . Recyclers Shooed . | . . . Parts Field Recycled . | . . . Retrieved Matter . | . . . Parts Self-Destructed . | . . . Prevented . | . . . Kills | -11 -10 -10 ------- Run | Yrd Mat Min Combat Hostiles Destroyed 13 | . 3 10 Guns 13 | . 3 10 Classes Destroyed 5 | 2 2 1 Tunneler 2 | 2 . . Recycler 1 | 1 . . Operator 2 | . 2 . Swarmer 11 | . 3 8 Grunt 2 | . . 2 Best Kill Streak 6 | 2 3 6 Combat Bots Only 6 | . 3 6 Max Kills in Single Turn 1 | 1 1 1 Gunslinging . | . . . Exploded . | . . . Melee . | . . . Uniques/NPCs Destroyed . | . . . Combat | -11 -10 -10 -------- Run | Yrd Mat Min Hostile Shots Fired 98 | . 21 77 Missed 40 | . 11 29 Damage Taken 630 | . 119 511 Core 257 | . 63 194 Absorbed by Shields . | . . . Core Remaining (%) 100 | 100 . . Volleys Fired 56 | 14 15 27 Largest 2 | 2 2 2 Hottest 100 | 40 100 40 Shots Fired 109 | 28 27 54 Gun 106 | 28 24 54 Cannon . | . . . Launcher . | . . . Special 3 | . 3 . Kinetic 106 | 28 24 54 Thermal 3 | . 3 . Explosive . | . . . Electromagnetic . | . . . Robot Hit Streak 8 | 5 5 8 Robot Miss Streak 4 | 4 2 4 Penetration Max . | . . . Secondary Targets 2 | . 1 1 Max Gunslinging Chain 1 | . 1 1 Shots Hit Robots 67 | 17 14 36 Core Hits 33 | 7 8 18 Critical Kills . | . . . Critical Parts Destroyed . | . . . Critical Strikes . | . . . Melee Attacks . | . . . Impact . | . . . Slashing . | . . . Piercing . | . . . Sneak Attacks . | . . . Combat Hostiles . | . . . Follow-up Attacks . | . . . Damage Inflicted 541 | 121 118 302 Guns 541 | 121 118 302 Cannons . | . . . Explosions . | . . . Melee . | . . . Ramming . | . . . Kinetic 541 | 121 118 302 Thermal . | . . . Explosive . | . . . Electromagnetic . | . . . Impact . | . . . Slashing . | . . . Piercing . | . . . Highest Corruption . | . . . Average Corruption . | . . . Corruption Purged . | . . . Corruption Blocked . | . . . Overload Shots . | . . . Overflow Damage . | . . . Projectiles . | . . . Explosions . | . . . Melee . | . . . Knockbacks . | . . . Impact . | . . . Kinetic . | . . . Secondary . | . . . Self-Inflicted Damage . | . . . Shots . | . . . Rammed . | . . . Targets Rammed . | . . . Kicked . | . . . Crushed . | . . . Highest Temperature 16 | . 16 12 Average Temperature 5 | . 6 5 Received Heat Transfer 234 | . 54 180 Siege Activations . | . . . Robots Corrupted . | . . . Combat Hostiles . | . . . Parts Fried . | . . . Impact Corruptions . | . . . Robots Melted . | . . . Combat Hostiles . | . . . Parts Melted . | . . . Heat Transferred . | . . . Parts Sabotaged . | . . . Parts Stolen . | . . . Parts Stripped . | . . . Power Chain Reactions . | . . . Alert | -11 -10 -10 ------- Run | Yrd Mat Min Peak Influence 391 | 15 391 387 Initial 152 | . 9 152 Average 169 | 7 101 290 Maximum Alert Level 1 | . 1 1 Low Security (%) 53 | 100 80 9 Level 1 46 | . 19 90 Level 2 . | . . . Level 3 . | . . . Level 4 . | . . . Level 5 . | . . . High Security . | . . . Max Security . | . . . Squads Dispatched 4 | . 4 . Investigation 2 | . 2 . Extermination . | . . . Reinforcement 2 | . 2 . Assault . | . . . Garrison . | . . . Intercept . | . . . Searches Triggered . | . . . Construction Impeded . | . . . Haulers Reinforced . | . . . Active Scanning Responses . | . . . Cargo Convoy Interrupts . | . . . Stealth | -11 -10 -10 --------- Run | Yrd Mat Min Distress Signals 2 | . 2 . Communications Jammed . | . . . Distress Signals . | . . . Times Spotted 38 | . 23 15 Peak Tracking Total 8 | . 8 8 Tactical Retreats 6 | . 5 1 Traps | -11 -10 -10 ------- Run | Yrd Mat Min Traps Triggered 2 | . 2 . Indirectly . | . . . Trap Hack Attempts . | . . . Triggered . | . . . Disarmed . | . . . Reprogrammed . | . . . Reused . | . . . Traps Extracted . | . . . Installed . | . . . Triggered . | . . . Machines | -11 -10 -10 ---------- Run | Yrd Mat Min Machines Disabled 1 | . 1 . Max in Single Turn 1 | . 1 . Machines Repaired . | . . . Machines Dismantled . | . . . Machines Sabotaged . | . . . Overloaded Fab Kills . | . . . Hacking | -11 -10 -10 --------- Run | Yrd Mat Min Machines Accessed 1 | . 1 . Terminals 1 | . 1 . Fabricators . | . . . Repair Stations . | . . . Recycling Units . | . . . Scanalyzers . | . . . Garrison Access . | . . . Total Hacks 4 | . 4 . Successful . | . . . Failed 4 | . 4 . Catastrophic . | . . . Database Lockouts . | . . . Manual 3 | . 3 . Terminals 4 | . 4 . Fabricators . | . . . Repair Stations . | . . . Recycling Units . | . . . Scanalyzers . | . . . Garrison Access . | . . . Terminal Hacks . | . . . Fabricator Hacks . | . . . Repair Station Hacks . | . . . Recycling Unit Hacks . | . . . Scanalyzer . | . . . Garrison Access Hacks . | . . . Unauthorized Hacks . | . . . Terminals . | . . . Fabricators . | . . . Repair Stations . | . . . Recycling Units . | . . . Scanalyzers . | . . . Garrison Access . | . . . Data Cores Recovered . | . . . Used . | . . . Hacking Detections 1 | . 1 . Full Trace Events 1 | . 1 . Feedback Events . | . . . Feedback Blocked . | . . . Robot Schematics Acquired . | . . . Robots Built . | . . . Authchips . | . . . Time . | . . . Total Robot Build Rating . | . . . Part Schematics Acquired . | . . . Parts Built . | . . . Authchips . | . . . Time . | . . . Total Part Build Rating . | . . . Parts Repaired . | . . . Time . | . . . Parts Recycled . | . . . Recycled Matter . | . . . Retrieved Matter . | . . . Retrieved Components . | . . . Parts Scanalyzed . | . . . Part Schematics Acquired . | . . . Parts Damaged . | . . . Bothacking | -11 -10 -10 ------------ Run | Yrd Mat Min Used RIF Installer . | . . . Robots Hacked . | . . . Non-combat . | . . . Combat . | . . . Robot Hacks Applied . | . . . Relay Couplers Released . | . . . Fabnet Peak Effective % . | . . . Robots Rewired . | . . . Allies Hacked . | . . . Hacks Repelled . | . . . Allies | -11 -10 -10 -------- Run | Yrd Mat Min Total Allies . | . . . Largest Group . | . . . Highest-Rated Group . | . . . Highest-Rated Ally . | . . . Total Orders . | . . . Ally Attacks . | . . . Total Damage . | . . . Kills . | . . . Allies Corrupted . | . . . Allies Melted . | . . . Intel | -11 -10 -10 ------- Run | Yrd Mat Min Robot Analysis Total . | . . . Derelict Logs Recovered 1 | . . 1 Drone Launches . | . . . Drone Recoveries . | . . . Exploration | -11 -10 -10 ------------- Run | Yrd Mat Min Turns Passed 843 | 94 398 351 Spaces Moved 1125 | 89 426 610 Core 233 | 89 137 7 Treads . | . . . Legs . | . . . Wheels . | . . . Hover . | . . . Flight 892 | . 289 603 Fastest Speed 37 | 50 37 37 Average Speed 51 | 50 71 38 Slowest Speed 150 | 50 150 150 Overloaded Moves . | . . . Propulsion Burnouts . | . . . Robots Hopped 9 | . . 9 Cave-ins Triggered . | . . . Exploration Rate (%) 52 | 4 66 86 Regions Visited 2 Branch Regions 1 Pre-discovered Areas . | . . . Known Exits Taken . | . . . Unknown Exits Taken 2 | 1 1 . Scrap Searched 1 | . . 1 Spaces Dug 2 | . 2 . Terrain Destroyed 2 | . 2 . Melee . | . . . Projectile 2 | . 2 . AOE . | . . . Terrain Rammed . | . . . Walls Destroyed . | . . . Machines Disabled . | . . . Actions | -11 -10 -10 --------- Run | Yrd Mat Min Total 1281 | 116 490 675 Wait 49 | . 29 20 Move 1106 | 88 425 593 Hop 8 | . . 8 Pick Up 23 | 9 8 6 Fast Attach 5 | . 3 2 Attach 9 | 4 2 3 Detach 1 | . . 1 Swap 12 | . 4 8 Drop 12 | 1 4 7 Fire 56 | 14 15 27 Melee . | . . . Ram . | . . . Kick . | . . . Crush . | . . . Escape Stasis . | . . . Rewire . | . . . Trap . | . . . Miscellaneous . | . . . Route ------- -11/Scrapyard -10/Materials (discovered 2 exits: [*Mat] / [*Min]) -10/Mines (discovered 2 exits: [*Mat x2]) History --------- Turn | Location | Event 6 | -11/Scrapyard | Discovered new exit (range 16) 95 | -11/Scrapyard | Entered Materials 316 | -10/Materials | Build established: Mutant 341 | -10/Materials | Discovered new exit (range 16) 489 | -10/Materials | Discovered new exit (range 12) 493 | -10/Materials | Entered Mines 559 | -10/Mines | Discovered new exit (range 14) 627 | -10/Mines | Core integrity fell below 50% 644 | -10/Mines | Core integrity fell below 20% 682 | -10/Mines | Lost 4 parts (2n1u1w) 787 | -10/Mines | Learned Materials garrison access intel 788 | -10/Mines | Discovered new exit (range 6) 844 | -10/Mines | Destroyed by Y-45 Defender with Heavy Assault Rifle Last Messages --------------- 00685_ Acquired Lgt. Ion Engine. 00687_ Dropped Flight Unit. 00690_ Dropped Lgt. Ion Engine. 00691_ Acquired Lgt. Ion Engine. 00694_ Searching scrap... 00694_ Found Propulsion Shielding. 00694_ Found Datajack. 00694_ Found Targeting Computer. 00694_ Found Ion Engine. 00694_ Found 28 Matter. 00720_ Acquired 28 matter. 00722_ Dropped Flight Unit. 00723_ Acquired Datajack. 00726_ Acquired 10 matter. 00753_ Acquired 16 matter. 00755_ K-01 Serf collects debris. 00778_ Critical hit (Burn: +37). 00787_ Acquired derelict log, extracted data. Data stored: Materials garrison access intel. 00788_ EXIT=FOUND Map ----- +----------------------------------------------------+ | ??????######## ### #?# #?#### #????????? | | ?????????????# #?# #?# #????# #????????? | | ?????????????# ### ##?# #????# #????????? | | ?????????????# ##??# ##???# #????????? | | ?????????????##### ####??## ##??# #????????? | | ?????????????????#####?????# #??# ##???????? | | ???????????????????????????# #?## ##??????? | | ???????????????????????????# ! ##?# #??????? | | ???????????????????????????# #??# ##???### | | ??????????????????????????# = ##??# ##### | | ?????????????????????????# #???# | | ????????????????????????# ! ##???## | | ????????????????????????#= ##?????## ## | | ????????????????????????#] ????????####### | | ?????##?????????????????## #??????????????## # | | ????## #?????????????????##????????????????#### | | ????# ??????????????????????????????????????? | | ???## = ##????????????????????????????????????? | | ???# [ #????????????????????????????????????? | | ???# #????????????????????????????????????? | | ???# ###############??????????????????????? | | ????# ! #??????????????????????? | | ????## ######## ##### #??????????????????????? | | ?????###???????# #???#Y#??????????????????????? | | ???????????????# #???#Y#??????????????????????? | | ???????????????# #???#@##########?????????????? | | ???????????????# #???# #?????????????? | | ??????????###### #???########## #?????????????? | | ??????????# #????????????# #?????????????? | | ??????????# ######????????????# #?????????????? | | ??????????# #?????????????????# #?????####????? | | ?????###### #??????????????#### ####### ##???? | | ?????# ##????????????## #???? | | ?????# ##??????????## ##??? | | ?????# ##?????????# ######## ###? | | ?????## ##????????# ##??????# ## | | ??????## ##???????# ##??????## | | ???????## #???????# < ####????## | | ???????## #???????# ##????# | | ???????# ##???????# #???# | | ???????# #####???## #??# | | ???????## ##??# ## ##?# | | ????????## """ #??# #?####??# ## | | ?????????### """ #??### #?###???## ######? | | ???????????## """ ##????# ## ###??# ??????? | | ????????????# """ #?????# # ##?##??????? | | ???????????## #?????# #?????????? | | ??###????### ## ##?????##### #?????????? | | ??# ##### ##?####???????????# ##?????????? | | ??# ##??????????????????####??????????? | +----------------------------------------------------+ Best States ------------- Heat Dissipation 25 Energy Generation 10 Energy Capacity 125 Matter Stores 300 Matter Capacity 300 Sight Range 16 Terrain Scan Density 10 Armor Coverage 150 Evasion (%) 62 Offensive Hacking 10 Item Schematics ----------------- None Robot Schematics ------------------ None Fabricated ------------ Nothing Alien Tech Used ----------------- None Achievements -------------- None Challenges ------------ None Game ------ Seed HelicalSpikedBiocell Manual? 0 Play Time 00:12:36 Cumulative 104.0 hours Start 2024.05.28 @ 21:52:34 End 2024.05.28 @ 22:03:15 Sessions 1 Manual Loads 0 Difficulty Rogue Special Mode None Game No. 93 Rogue 88 Adventurer 5 Explorer 0 Win Type - Total 1 Types 1/0/0/0/0/0/0/0/0 Lore% 46 Gallery% 58 Achievement% 43 Wizard Run 0 Options --------- Layout 2 ASCII 0 Keyboard 0 Movement Mouse Keybinds 0 Fullscreen 2 Font 24/Smallcaps Map View 50x44 Zoom Use 0% Tactical HUD 1 Map Filters NONE Filters NONE Steam 1 RUN: 9534db2e-3164-4d02-89f7-0b97b3c191f0